Cogmind - Beta 14 @@@ ROGUE MODE // 2025.01.03 @ 15:03:24 // Winter2021/Sauler Player: Demo Result: Destroyed by Autobeam Turret with Autobeam Performance ------------- Evolutions (0) 0 Regions Visited (3) 600 Robots Destroyed (15) 75 Value Destroyed (259) 259 Prototype IDs (0) 0 Alien Tech Used (0) 0 Bonus (0) 0 TOTAL SCORE: 934 Bonus ------- None Cogmind --------- Core Integrity 0/250 Matter 149/300 Energy 31/100 System Corruption 0% Temperature Cool (18) Movement Core (50) Location -10/Subcaves Parts ------- > --- POWER (1) -------- (None) > --- PROPULSION (2) --- Light Treads Light Treads > --- UTILITY (2) ------ Targeting Computer Core Shielding > --- WEAPON (2) ------- (None) > --- INVENTORY (5) ---- High-capacity Matter Pod (200) Seismic Detector Targeting Computer Hacking Suite Riot Gun Peak State ------------ > --- POWER ------------ Subdweller Power Source > --- PROPULSION ------- Light Treads Light Treads > --- UTILITY ---------- Large Storage Unit Core Shielding > --- WEAPON ----------- Riot Gun > --- INVENTORY -------- Wheel Wheel High-capacity Matter Pod Subdweller Optics Signal Interpreter Seismic Detector Seismic Detector Targeting Computer Targeting Computer Targeting Computer Hacking Suite [Rating: 10] Favorites ----------- Power Light Ion Engine Engine Light Ion Engine Propulsion Wheel Treads Light Treads Wheel Wheel Utility Large Storage Unit Device Seismic Detector Storage Large Storage Unit Processor Targeting Computer Protection Core Shielding Weapon EM Pulse Gun Energy Gun EM Pulse Gun Ballistic Gun Light Assault Rifle Launcher Rocket Launcher Slashing Weapon Mining Claw Build | -11 -10 -10 -10 ------- Run | Yrd Mat Min Sub Slots Evolved . | . . . . Power . | . . . . Propulsion . | . . . . Utility . | . . . . Weapon . | . . . . Parts Attached 23 | 4 6 3 10 Power 2 | . . 1 1 Engine 2 | . . 1 1 Core . | . . . . Reactor . | . . . . Propulsion 7 | 2 1 1 3 Treads 3 | 1 . . 2 Leg . | . . . . Wheel 4 | 1 1 1 1 Hover . | . . . . Flight . | . . . . Utility 6 | . 4 . 2 Device 1 | . 1 . . Storage 3 | . 3 . . Processor 1 | . . . 1 Hackware . | . . . . Protection 1 | . . . 1 Artifact . | . . . . Weapon 8 | 2 1 1 4 Energy Gun 3 | 1 1 . 1 Energy Cannon . | . . . . Ballistic Gun 2 | 1 . . 1 Ballistic Cannon . | . . . . Launcher 1 | . . . 1 Special Weapon . | . . . . Impact Weapon . | . . . . Slashing Weapon 2 | . . 1 1 Piercing Weapon . | . . . . Special Melee Weapon . | . . . . Unidentified Prototypes . | . . . . Parts Lost 9 | . 1 . 8 Power 1 | . . . 1 Propulsion 3 | . . . 3 Utility . | . . . . Weapon 5 | . 1 . 4 Highest Loss Streak 5 | . 1 . 5 To Critical Strikes . | . . . . Average Slot Usage (%) 80 | . 73 95 73 Engine 3 | . . 10 2 Treads 2 | . 3 . 1 Wheel 25 | . 24 28 25 Device 7 | . 6 14 2 Storage 12 | . 11 14 13 Protection 3 | . . . 11 Energy Gun 10 | . 13 14 1 Ballistic Gun 9 | . 14 12 . Slashing Weapon 3 | . . 2 8 Peak Build Rating 10 | 4 7 8 10 Average Rating 6 | 3 5 7 6 On Entrance 4 | . 4 7 8 Naked Turns . | . . . . Heaviest Build 30 | 3 24 28 30 Greatest Support 20 | 3 20 20 20 Greatest Overweight (x) 1 | . 1 1 1 Average Overweight (x) . | . . 1 . Largest Inventory Capacity 15 | 5 15 15 15 Average Capacity 11 | 5 9 15 14 Most Carried 15 | 5 10 15 15 Average Carried 10 | 2 8 12 13 Final Capacity 15 | 5 15 15 5 Final Carried 15 | 5 9 15 5 Class Distribution -------------------- 92% | Mutant 7% | Scavenger-Mutant Dominant Class ---------------- Mutant | -10/Materials Mutant | -10/Mines Mutant | -10/Subcaves Resources | -11 -10 -10 -10 ----------- Run | Yrd Mat Min Sub Matter Collected 564 | 245 198 101 20 Remotely . | . . . . Salvage Created 407 | 83 198 94 32 Parts 35 | 6 15 11 3 Haulers Intercepted 1 | . 1 . . Recyclers Shooed 1 | 1 . . . Parts Field Recycled . | . . . . Retrieved Matter . | . . . . Parts Self-Destructed . | . . . . Prevented . | . . . . Kills | -11 -10 -10 -10 ------- Run | Yrd Mat Min Sub Combat Hostiles Destroyed 6 | . 2 2 2 Melee 1 | . . . 1 Guns 4 | . 2 2 . AOE 1 | . . . 1 Classes Destroyed 9 | 2 4 2 1 Worker 1 | . . 1 . Tunneler 3 | 1 . 2 . Hauler 1 | . 1 . . Recycler 1 | 1 . . . Operator 1 | . 1 . . Watcher 2 | . 2 . . Swarmer 2 | . . 2 . Grunt 2 | . 2 . . Subdweller 2 | . . . 2 Best Kill Streak 3 | 2 2 3 1 Combat Bots Only 2 | . 2 2 1 Max Kills in Single Turn 1 | 1 1 1 1 Gunslinging . | . . . . Exploded 1 | . . . 1 Melee 1 | . . . 1 Uniques/NPCs Destroyed . | . . . . Combat | -11 -10 -10 -10 -------- Run | Yrd Mat Min Sub Hostile Shots Fired 84 | . 17 7 60 Missed 22 | . 1 1 20 Damage Taken 1001 | . 207 47 747 Core 250 | . 61 16 173 Absorbed by Shields . | . . . . Redirected to Shielding 18 | . . . 18 Core Remaining (%) 100 | 100 . . . Volleys Fired 38 | 5 17 7 9 Largest 2 | 2 2 2 2 Hottest 60 | 60 60 60 53 Shots Fired 68 | 10 33 14 11 Gun 59 | 10 33 14 2 Cannon . | . . . . Launcher 9 | . . . 9 Special . | . . . . Kinetic 31 | 5 17 7 2 Thermal . | . . . . Explosive 9 | . . . 9 Electromagnetic 28 | 5 16 7 . Robot Hit Streak 9 | 4 9 7 8 Robot Miss Streak 2 | 2 1 2 1 Penetration Max . | . . . . Secondary Targets 1 | . 1 . . Max Gunslinging Chain 1 | . 1 . . Shots Hit Robots 47 | 6 21 11 9 Core Hits 25 | 3 11 6 5 Critical Kills . | . . . . Critical Parts Destroyed . | . . . . Critical Strikes . | . . . . Melee Attacks 11 | . . 6 5 Impact . | . . . . Slashing 11 | . . 6 5 Piercing . | . . . . Sneak Attacks 1 | . . 1 . Combat Hostiles . | . . . . Follow-up Attacks . | . . . . Damage Inflicted 839 | 71 266 168 334 Guns 409 | 71 226 96 16 Cannons . | . . . . Explosions 288 | . 40 . 248 Melee 142 | . . 72 70 Ramming . | . . . . Kinetic 149 | 19 82 32 16 Thermal 40 | . 40 . . Explosive 248 | . . . 248 Electromagnetic 260 | 52 144 64 . Impact . | . . . . Slashing 142 | . . 72 70 Piercing . | . . . . Highest Corruption . | . . . . Average Corruption . | . . . . Corruption Purged . | . . . . Corruption Blocked . | . . . . Overload Shots . | . . . . Overflow Damage 10 | . . 10 . Projectiles . | . . . . Explosions . | . . . . Melee 10 | . . 10 . Knockbacks . | . . . . Impact . | . . . . Kinetic . | . . . . Secondary . | . . . . Self-Inflicted Damage 48 | . . . 48 Shots 3 | . . . 3 Rammed . | . . . . Targets Rammed . | . . . . Kicked . | . . . . Crushed . | . . . . Highest Temperature 26 | 20 26 20 . Average Temperature 11 | 9 11 12 . Received Heat Transfer 282 | . 117 . 165 Siege Activations . | . . . . Robots Corrupted . | . . . . Combat Hostiles . | . . . . Parts Fried . | . . . . Impact Corruptions . | . . . . Robots Melted . | . . . . Combat Hostiles . | . . . . Parts Melted . | . . . . Heat Transferred 50 | . 50 . . Parts Sabotaged . | . . . . Parts Stolen . | . . . . Parts Stripped . | . . . . Power Chain Reactions 1 | . 1 . . Alert | -11 -10 -10 -10 ------- Run | Yrd Mat Min Sub Peak Influence 195 | 10 195 176 . Initial 75 | . 6 75 . Average 103 | 3 88 147 . Maximum Alert Level . | . . . . Low Security (%) 100 | 100 100 100 . Level 1 . | . . . . Level 2 . | . . . . Level 3 . | . . . . Level 4 . | . . . . Level 5 . | . . . . High Security . | . . . . Max Security . | . . . . Squads Dispatched 2 | . 2 . . Investigation . | . . . . Extermination . | . . . . Reinforcement 2 | . 2 . . Assault . | . . . . Garrison . | . . . . Intercept . | . . . . Searches Triggered . | . . . . Construction Impeded . | . . . . Haulers Reinforced . | . . . . Active Scanning Responses . | . . . . Cargo Convoy Interrupts . | . . . . Stealth | -11 -10 -10 -10 --------- Run | Yrd Mat Min Sub Distress Signals . | . . . . Communications Jammed . | . . . . Distress Signals . | . . . . Times Spotted 23 | . 9 3 11 Peak Tracking Total 8 | . 4 3 8 Tactical Retreats 4 | . 1 2 1 Traps | -11 -10 -10 -10 ------- Run | Yrd Mat Min Sub Traps Triggered 2 | . . . 2 Indirectly . | . . . . Trap Hack Attempts . | . . . . Triggered . | . . . . Disarmed . | . . . . Reprogrammed . | . . . . Reused . | . . . . Traps Extracted . | . . . . Installed . | . . . . Triggered . | . . . . Machines | -11 -10 -10 -10 ---------- Run | Yrd Mat Min Sub Machines Disabled . | . . . . Max in Single Turn . | . . . . Machines Repaired . | . . . . Machines Dismantled . | . . . . Machines Sabotaged . | . . . . Overloaded Fab Kills . | . . . . Hacking | -11 -10 -10 -10 --------- Run | Yrd Mat Min Sub Machines Accessed 4 | . 4 . . Terminals 4 | . 4 . . Fabricators . | . . . . Repair Stations . | . . . . Recycling Units . | . . . . Scanalyzers . | . . . . Garrison Access . | . . . . Total Hacks 12 | . 12 . . Successful 7 | . 7 . . Failed 5 | . 5 . . Catastrophic 2 | . 2 . . Database Lockouts . | . . . . Manual 11 | . 11 . . Terminals 12 | . 12 . . Fabricators . | . . . . Repair Stations . | . . . . Recycling Units . | . . . . Scanalyzers . | . . . . Garrison Access . | . . . . Terminal Hacks 2 | . 2 . . Terminal Index 1 | . 1 . . Locate Traps 1 | . 1 . . Fabricator Hacks . | . . . . Repair Station Hacks . | . . . . Recycling Unit Hacks . | . . . . Scanalyzer . | . . . . Garrison Access Hacks . | . . . . Unauthorized Hacks 5 | . 5 . . Terminals 5 | . 5 . . Botnet 4 | . 4 . . Operators 1 | . 1 . . Fabricators . | . . . . Repair Stations . | . . . . Recycling Units . | . . . . Scanalyzers . | . . . . Garrison Access . | . . . . Data Cores Recovered . | . . . . Used . | . . . . Hacking Detections 4 | . 4 . . Full Trace Events . | . . . . Feedback Events . | . . . . Feedback Blocked . | . . . . Robot Schematics Acquired . | . . . . Robots Built . | . . . . Authchips . | . . . . Time . | . . . . Total Robot Build Rating . | . . . . Part Schematics Acquired . | . . . . Parts Built . | . . . . Authchips . | . . . . Time . | . . . . Total Part Build Rating . | . . . . Parts Repaired . | . . . . Time . | . . . . Parts Recycled . | . . . . Recycled Matter . | . . . . Retrieved Matter . | . . . . Retrieved Components . | . . . . Parts Scanalyzed . | . . . . Part Schematics Acquired . | . . . . Parts Damaged . | . . . . Bothacking | -11 -10 -10 -10 ------------ Run | Yrd Mat Min Sub Used RIF Installer . | . . . . Robots Hacked . | . . . . Non-combat . | . . . . Combat . | . . . . Robot Hacks Applied . | . . . . Relay Couplers Released . | . . . . Fabnet Peak Effective % . | . . . . Robots Rewired . | . . . . Allies Hacked . | . . . . Hacks Repelled . | . . . . Allies | -11 -10 -10 -10 -------- Run | Yrd Mat Min Sub Total Allies . | . . . . Largest Group . | . . . . Highest-Rated Group . | . . . . Highest-Rated Ally . | . . . . Total Orders . | . . . . Ally Attacks . | . . . . Total Damage . | . . . . Kills . | . . . . Allies Corrupted . | . . . . Allies Melted . | . . . . Intel | -11 -10 -10 -10 ------- Run | Yrd Mat Min Sub Robot Analysis Total . | . . . . Derelict Logs Recovered 1 | . . 1 . Drone Launches . | . . . . Drone Recoveries . | . . . . Exploration | -11 -10 -10 -10 ------------- Run | Yrd Mat Min Sub Turns Passed 757 | 51 299 213 194 Spaces Moved 647 | 48 284 157 158 Core 158 | 48 91 . 19 Treads . | . . . . Legs . | . . . . Wheels 489 | . 193 157 139 Hover . | . . . . Flight . | . . . . Fastest Speed 50 | 50 50 95 50 Average Speed 79 | 50 71 95 89 Slowest Speed 95 | 50 95 95 95 Overloaded Moves . | . . . . Propulsion Burnouts . | . . . . Robots Hopped . | . . . . Cave-ins Triggered . | . . . . Exploration Rate (%) 26 | 3 53 38 11 Regions Visited 3 Branch Regions 2 Pre-discovered Areas 1 | . . 1 . Known Exits Taken . | . . . . Unknown Exits Taken 3 | 1 1 1 . Scrap Searched 1 | . . 1 . Spaces Dug 17 | . . 1 16 Terrain Destroyed 70 | . 2 1 67 Melee 1 | . . 1 . Projectile . | . . . . AOE 69 | . 2 . 67 Terrain Rammed . | . . . . Walls Destroyed . | . . . . Machines Disabled . | . . . . Actions | -11 -10 -10 -10 --------- Run | Yrd Mat Min Sub Total 802 | 64 351 197 190 Wait 50 | 1 30 16 3 Move 644 | 47 283 156 158 Hop . | . . . . Pick Up 26 | 7 10 7 2 Fast Attach 5 | 2 1 1 1 Attach 12 | 2 3 . 7 Detach 1 | . . . 1 Swap 6 | . 2 2 2 Drop 9 | . 5 2 2 Fire 38 | 5 17 7 9 Melee 11 | . . 6 5 Ram . | . . . . Kick . | . . . . Crush . | . . . . Escape Stasis . | . . . . Rewire . | . . . . Trap . | . . . . Miscellaneous . | . . . . Route ------- -11/Scrapyard -10/Materials -10/Mines (discovered 2 exits: [*Mat] / [*Sub]) -10/Subcaves (discovered 1 exit: [*Rec]) History --------- Turn | Location | Event 36 | -11/Scrapyard | Discovered new exit (range 13) 52 | -11/Scrapyard | Entered Materials 321 | -10/Materials | Build established: Mutant 338 | -10/Materials | Discovered new exit (range 12) 351 | -10/Materials | Entered Mines 375 | -10/Mines | Met a Derelict bent on vengeance 437 | -10/Mines | Discovered new exit (range 10) 503 | -10/Mines | Learned location of Zion (-7) 511 | -10/Mines | Received a Rocket Launcher from a helpful Derelict 560 | -10/Mines | Discovered new exit (range 3) 564 | -10/Mines | Entered Subcaves 584 | -10/Subcaves | Ambushed by Subdweller buried in earth 593 | -10/Subcaves | Ambushed by Subdweller buried in earth 594 | -10/Subcaves | Core integrity fell below 50% 617 | -10/Subcaves | Core integrity fell below 20% 647 | -10/Subcaves | Lost 5 parts (1p1n3w) 736 | -10/Subcaves | Shifting Twisted Machinery released Riot Gun 752 | -10/Subcaves | Discovered new exit (range 16) 758 | -10/Subcaves | Destroyed by Autobeam Turret with Autobeam Last Messages --------------- 00616_ Wheel destroyed. 00618_ The unstable cave ceiling collapses. 00618_ NY-NOB(R) destroyed. 00623_ Acquired Sub. Power Source. 00624_ Acquired 18 matter. 00626_ The unstable cave ceiling collapses. 00626_ Acquired Sub. Optics. 00627_ Acquired 2 matter. 00635_ The unstable cave ceiling collapses. 00723_ Mining Claw destroyed. 00729_ Triggered Piercing Trap. 00729_ Spikes shoot up from the floor. Riot Gun falls loose from the Twisted Machinery. 00741_ Wheel destroyed. 00742_ Acquired Riot Gun. 00743_ Wheel destroyed. 00747_ Dropped Lrg. Storage Unit. 00749_ Dropped Sub. Power Source. 00752_ EXIT=FOUND 00756_ S-10 Pest destroyed. Map ----- +----------------------------------------------------+ | # """##???# ## #??????????????????? | | ###### "# ##???##### #??????????????????? | | ????# # #####??### ##??????????????????? | | ????#### ##??????# ###???????????????????? | | ?????## #???????# #?????????????????????? | | ????## ^####???#### #?????????????????????? | | ##?## #??## ## ##?????????????????????? | | # # #?## ##??????????????????????? | | ^ ### ##???????????????????????? | | ? ### ##????????????????????????? | | ????# ## #####????????????????????? | | ##### # # ## #????????????????????? | | ## #### # #### #????????????????????? | | ####?## #???## #????????????????????? | | # ##???## #????# #????????????????????? | | ### # ###??# # #????# #????????????????????? | | ?## ##?##### ##??## #????????????????????? | | ## ##???## #### #????????????????????? | | # ##??# # #????????????????????? | | ##?## ### ####????????????????????? | | !! #??############????????????????????? | | ## !!==* #??????#" """#????????????????????? | | #?## "!## ##?????# "#????????????????????? | | ???######### ####### s "#????????????????????? | | ???????????## [%= t""##???????????????????? | | ????????????# =* @ <#???????????????????? | | ????????????# " ss t""##???????????????????? | | ????????????# ###### "#????????????????????? | | ????????????# " #????# "#????????????????????? | | ???????????# " ????#" """#????????????????????? | | ??????????" ???########????????????????????? | | ?????????" ??????????????????????????????? | | ????????" ## ??????????????????????????????? | | ???????" ?# "?????????????????????????????? | | ??????" ?# # #?????????????????????????????? | | ??????# ?? ####?????????????????????????????? | | ??????# ?? #????????????????????????????????? | | ???????? ???? #?????????????????????????????????? | | ?????????????##??????????????????????????????????? | | ?????????????????????????????????????????????????? | | ?????????????????????????????????????????????????? | | ?????????????????????????????????????????????????? | | ?????????????????????????????????????????????????? | | ?????????????????????????????????????????????????? | | ?????????????????????????????????????????????????? | | ?????????????????????????????????????????????????? | | ?????????????????????????????????????????????????? | | ?????????????????????????????????????????????????? | | ?????????????????????????????????????????????????? | | ?????????????????????????????????????????????????? | +----------------------------------------------------+ Best States ------------- Heat Dissipation 25 Energy Generation 10 Energy Capacity 125 Matter Stores 300 Matter Capacity 300 Sight Range 16 Terrain Scan Density 10 Core Shielding 20 Evasion (%) 50 Item Schematics ----------------- None Robot Schematics ------------------ None Fabricated ------------ Nothing Alien Tech Used ----------------- None Achievements -------------- None Challenges ------------ None Game ------ Seed DirtyDispersionReplica Manual? 0 Play Time 00:09:17 Cumulative 118.7 hours Start 2025.01.03 @ 14:56:11 End 2025.01.03 @ 15:03:24 Sessions 1 Manual Loads 0 Difficulty Rogue Special Mode Winter2021/Sauler Game No. 139 Rogue 139 Adventurer 0 Explorer 0 Win Type - Total 1 Types 1/0/0/0/0/0/0/0/0 Lore% 52 Gallery% 67 Achievement% 53 Wizard Run 0 Options --------- Layout 1 ASCII 0 Keyboard 0 Movement Numpad Keybinds 0 Fullscreen 1 Font 24/Smallcaps Map View 50x35 Zoom Use 0% Tactical HUD 1 Map Filters NONE Filters NONE Steam 1 RUN: 4e9237aa-0ed4-4d33-98e4-d3bcdd4cad42